Cogmind - Beta 13 @@@ ROGUE MODE // 2024.04.13 @ 17:51:04 Player: Rend Result: Self-destructed Performance ------------- Evolutions (2) 1000 Regions Visited (5) 1000 Robots Destroyed (45) 225 Value Destroyed (1195) 1195 Prototype IDs (26) 520 Alien Tech Used (0) 0 Bonus (370) 370 TOTAL SCORE: 4310 Bonus ------- Follower Combat Kills 70 Aligned with FarCom 300 Cogmind --------- Core Integrity 125/550 Matter 247/300 Energy 100/100 System Corruption 20% Temperature Cool (0) Movement Core (300) Ox5 Location -8/Materials Parts ------- > --- POWER (2) -------- (None) > --- PROPULSION (2) --- (None) > --- UTILITY (4) ------ Medium Storage Unit > --- WEAPON (3) ------- Heavy Particle Cannon > --- INVENTORY (10) --- Deuterium Engine Deuterium Engine Carbon-fiber Leg Carbon-fiber Leg High-capacity Matter Pod (200) Compact Matter Pod (150) Improved Signal Interpreter Field Lobotomy Kit (5) Katana Peak State ------------ > --- POWER ------------ Ion Engine Improved Ion Engine > --- PROPULSION ------- Aluminum Leg Aluminum Leg > --- UTILITY ---------- Improved Heat Sink Medium Storage Unit Improved Sensor Array Signal Interpreter > --- WEAPON ----------- Particle Gun Light Cannon Missile Launcher > --- INVENTORY -------- Deuterium Engine Deuterium Engine Carbon-fiber Leg Carbon-fiber Leg High-capacity Matter Pod Compact Matter Pod Experimental Sensor Array Improved Signal Interpreter Heavy Particle Cannon Field Lobotomy Kit [Rating: 23] Favorites ----------- Power Ion Engine Engine Ion Engine Propulsion Aluminum Leg Leg Aluminum Leg Wheel Wheel Utility Signal Interpreter Device Improved Heat Sink Storage Medium Storage Unit Processor Signal Interpreter Weapon Particle Gun Energy Gun Particle Gun Energy Cannon Beam Cannon Ballistic Gun Assault Rifle Ballistic Cannon Light Cannon Launcher Rocket Launcher Special Weapon Field Lobotomy Kit Build | -11 -10 -10 -10 -9 -8 ------- Run | Yrd Mat Min Exi Min Mat Slots Evolved 4 | . . . . . 4 Power 1 | . . . . . 1 Propulsion . | . . . . . . Utility 2 | . . . . . 2 Weapon 1 | . . . . . 1 Parts Attached 47 | 7 12 13 . 2 13 Power 7 | 1 2 2 . . 2 Engine 7 | 1 2 2 . . 2 Core . | . . . . . . Reactor . | . . . . . . Propulsion 9 | 2 2 1 . . 4 Treads . | . . . . . . Leg 7 | . 2 1 . . 4 Wheel 2 | 2 . . . . . Hover . | . . . . . . Flight . | . . . . . . Utility 7 | 1 3 . . . 3 Device 3 | . . . . . 3 Storage 3 | 1 2 . . . . Processor 1 | . 1 . . . . Hackware . | . . . . . . Protection . | . . . . . . Artifact . | . . . . . . Weapon 24 | 3 5 10 . 2 4 Energy Gun 3 | 1 1 1 . . . Energy Cannon 2 | . . 1 . . 1 Ballistic Gun 3 | 2 1 . . . . Ballistic Cannon 8 | . 3 3 . . 2 Launcher 7 | . . 5 . 1 1 Special Weapon 1 | . . . . 1 . Impact Weapon . | . . . . . . Slashing Weapon . | . . . . . . Piercing Weapon . | . . . . . . Special Melee Weapon . | . . . . . . Unidentified Prototypes 1 | . . . . . 1 Parts Lost 13 | . 1 1 . . 11 Power 2 | . . . . . 2 Propulsion 4 | . 1 1 . . 2 Utility 3 | . . . . . 3 Weapon 4 | . . . . . 4 Highest Loss Streak 10 | . 1 1 . . 10 To Critical Strikes . | . . . . . . Average Slot Usage (%) 97 | . 98 99 100 100 90 Engine 13 | . 14 14 14 14 13 Leg 23 | . 18 27 28 28 17 Wheel 1 | . 8 . . . . Device 3 | . . . . . 14 Storage 12 | . 14 14 14 14 9 Processor 12 | . 12 14 14 14 8 Energy Gun 9 | . 3 8 14 14 8 Ballistic Cannon 8 | . 21 9 . . 9 Launcher 8 | . . 6 14 14 7 Naked Turns . | . . . . . . Heaviest Build 36 | 13 21 22 22 22 36 Greatest Support 20 | 20 20 20 20 20 20 Greatest Overweight (x) 3 | . 1 1 1 1 3 Average Overweight (x) . | . . . 1 1 1 Largest Inventory Capacity 10 | 8 10 10 10 10 10 Average Capacity 9 | 6 8 10 10 10 10 Most Carried 10 | 5 10 10 10 10 10 Average Carried 9 | 3 8 9 9 10 9 Final Capacity 10 | 8 10 10 10 10 10 Final Carried 10 | 4 10 9 10 10 10 Class Distribution -------------------- 77% | Mutant 21% | Scavenger-Skirmisher Dominant Class ---------------- Mutant | -10/Materials Mutant | -10/Mines Mutant | -10/Exiles Mutant | -9/Mines Scavenger-Skirmisher | -8/Materials Resources | -11 -10 -10 -10 -9 -8 ----------- Run | Yrd Mat Min Exi Min Mat Matter Collected 1158 | 223 380 298 16 20 221 Remotely . | . . . . . . Salvage Created 963 | . 339 259 . . 365 Parts 74 | . 20 27 . . 27 Haulers Intercepted . | . . . . . . Recyclers Shooed . | . . . . . . Parts Field Recycled . | . . . . . . Retrieved Matter . | . . . . . . Parts Self-Destructed . | . . . . . . Prevented . | . . . . . . Kills | -11 -10 -10 -10 -9 -8 ------- Run | Yrd Mat Min Exi Min Mat Combat Hostiles Destroyed 36 | . 11 15 . . 10 Guns 9 | . 7 . . . 2 Cannons 12 | . 4 6 . . 2 AOE 14 | . . 9 . . 5 Classes Destroyed 9 | . 4 1 . . 4 Builder 2 | . . . . . 2 Tunneler 1 | . . 1 . . . Recycler 1 | . 1 . . . . Operator 1 | . . . . . 1 Watcher 4 | . 1 . . . 3 Swarmer 15 | . 6 9 . . . Grunt 18 | . 5 6 . . 7 Duelist 1 | . . . . . 1 Sentry 2 | . . . . . 2 Best Kill Streak 5 | . 4 4 . . 5 Combat Bots Only 4 | . 4 3 . . 3 Max Kills in Single Turn 4 | . 1 4 . . 2 Gunslinging . | . . . . . . Exploded 3 | . . 3 . . 1 Melee . | . . . . . . Uniques/NPCs Destroyed . | . . . . . . Combat | -11 -10 -10 -10 -9 -8 -------- Run | Yrd Mat Min Exi Min Mat Hostile Shots Fired 151 | . 80 39 . . 32 Missed 33 | . 21 6 . . 6 Damage Taken 2516 | . 526 356 . . 1634 Core 552 | . 101 26 . . 425 Absorbed by Shields . | . . . . . . Regen/Repaired (Parts) 41 | . 41 . . . . Core Remaining (%) 74 | 100 . . . 49 . Volleys Fired 88 | . 37 20 . . 31 Largest 3 | . 2 2 . . 3 Hottest 140 | . 70 95 . . 140 Shots Fired 173 | . 74 39 . . 60 Gun 72 | . 46 . . . 26 Cannon 86 | . 28 33 . . 25 Launcher 15 | . . 6 . . 9 Special . | . . . . . . Kinetic 90 | . 51 17 . . 22 Thermal 68 | . 23 16 . . 29 Explosive 15 | . . 6 . . 9 Electromagnetic . | . . . . . . Robot Hit Streak 8 | . 8 8 . . 8 Robot Miss Streak 4 | . 3 4 . . 4 Penetration Max . | . . . . . . Secondary Targets 3 | . 3 . . . . Max Gunslinging Chain 1 | . 1 . . . . Shots Hit Robots 93 | . 44 17 . . 32 Core Hits 66 | . 18 20 . . 28 Critical Kills . | . . . . . . Critical Parts Destroyed . | . . . . . . Critical Strikes 3 | . 2 . . . 1 Blast 3 | . 2 . . . 1 Melee Attacks . | . . . . . . Impact . | . . . . . . Slashing . | . . . . . . Piercing . | . . . . . . Sneak Attacks . | . . . . . . Combat Hostiles . | . . . . . . Follow-up Attacks . | . . . . . . Damage Inflicted 2642 | . 646 876 . . 1120 Guns 529 | . 306 . . . 223 Cannons 930 | . 340 267 . . 323 Explosions 1183 | . . 609 . . 574 Melee . | . . . . . . Ramming . | . . . . . . Kinetic 836 | . 461 127 . . 248 Thermal 623 | . 185 140 . . 298 Explosive 1183 | . . 609 . . 574 Electromagnetic . | . . . . . . Impact . | . . . . . . Slashing . | . . . . . . Piercing . | . . . . . . Highest Corruption 20 | . . . . . 20 Average Corruption 3 | . . . . . 3 Corruption Purged . | . . . . . . Corruption Blocked . | . . . . . . Effects 4 | . . . . . 4 Message Errors 1 | . . . . . 1 Heat Flow Errors 1 | . . . . . 1 Data Loss (minor) 2 | . . . . . 2 Overload Shots . | . . . . . . Overflow Damage 12 | . 9 3 . . . Projectiles 9 | . 9 . . . . Explosions 3 | . . 3 . . . Melee . | . . . . . . Knockbacks 6 | . 5 . . . 1 Impact . | . . . . . . Kinetic 6 | . 5 . . . 1 Secondary . | . . . . . . Self-Inflicted Damage 89 | . . . . . 89 Shots 3 | . . . . . 3 Rammed . | . . . . . . Targets Rammed . | . . . . . . Kicked . | . . . . . . Crushed . | . . . . . . Highest Temperature 313 | . 72 219 . . 313 Average Temperature 51 | . 27 72 . . 58 Received Heat Transfer 495 | . 117 126 . . 252 Siege Activations . | . . . . . . Robots Corrupted . | . . . . . . Combat Hostiles . | . . . . . . Parts Fried . | . . . . . . Impact Corruptions . | . . . . . . Robots Melted . | . . . . . . Combat Hostiles . | . . . . . . Parts Melted 2 | . 1 . . . 1 Heat Transferred 1350 | . 425 296 . . 629 Parts Sabotaged . | . . . . . . Parts Stolen . | . . . . . . Parts Stripped . | . . . . . . Power Chain Reactions . | . . . . . . Alert | -11 -10 -10 -10 -9 -8 ------- Run | Yrd Mat Min Exi Min Mat Peak Influence 344 | . 344 314 . . 223 Initial 30 | . . 30 . . . Average 74 | . 142 133 . . 37 Maximum Alert Level 1 | . 1 1 . . 1 Low Security (%) 91 | 100 77 86 . 100 97 Level 1 8 | . 22 13 . . 2 Level 2 . | . . . . . . Level 3 . | . . . . . . Level 4 . | . . . . . . Level 5 . | . . . . . . High Security . | . . . . . . Max Security . | . . . . . . Squads Dispatched 6 | . 3 . . . 3 Investigation 1 | . . . . . 1 Extermination . | . . . . . . Reinforcement 5 | . 3 . . . 2 Assault . | . . . . . . Garrison . | . . . . . . Intercept . | . . . . . . Searches Triggered . | . . . . . . Construction Impeded 1 | . . . . . 1 Haulers Reinforced . | . . . . . . Active Scanning Responses . | . . . . . . Cargo Convoy Interrupts . | . . . . . . Stealth | -11 -10 -10 -10 -9 -8 --------- Run | Yrd Mat Min Exi Min Mat Distress Signals 5 | . 1 . . . 4 Communications Jammed . | . . . . . . Distress Signals . | . . . . . . Times Spotted 60 | . 22 15 . . 23 Peak Tracking Total 8 | . 6 3 . . 8 Tactical Retreats 5 | . 2 1 . . 2 Traps | -11 -10 -10 -10 -9 -8 ------- Run | Yrd Mat Min Exi Min Mat Traps Triggered 2 | . . . . . 2 Indirectly . | . . . . . . Trap Hack Attempts . | . . . . . . Triggered . | . . . . . . Disarmed . | . . . . . . Reprogrammed . | . . . . . . Reused . | . . . . . . Traps Extracted . | . . . . . . Installed . | . . . . . . Triggered . | . . . . . . Machines | -11 -10 -10 -10 -9 -8 ---------- Run | Yrd Mat Min Exi Min Mat Machines Disabled 3 | . 1 1 . . 1 Max in Single Turn 1 | . 1 1 . . 1 Machines Repaired . | . . . . . . Machines Dismantled . | . . . . . . Machines Sabotaged . | . . . . . . Overloaded Fab Kills . | . . . . . . Hacking | -11 -10 -10 -10 -9 -8 --------- Run | Yrd Mat Min Exi Min Mat Machines Accessed 5 | . 3 . 1 . 1 Terminals 3 | . 2 . . . 1 Fabricators . | . . . . . . Repair Stations 1 | . 1 . . . . Recycling Units . | . . . . . . Scanalyzers . | . . . . . . Garrison Access . | . . . . . . Total Hacks 12 | . 9 . 1 . 2 Successful 9 | . 7 . 1 . 1 Failed 3 | . 2 . . . 1 Catastrophic 1 | . 1 . . . . Database Lockouts . | . . . . . . Manual 1 | . . . 1 . . Terminals 7 | . 5 . . . 2 Fabricators . | . . . . . . Repair Stations 4 | . 4 . . . . Recycling Units . | . . . . . . Scanalyzers . | . . . . . . Garrison Access . | . . . . . . Terminal Hacks 6 | . 4 . 1 . 1 Record 3 | . 3 . . . . Prototype ID Bank 1 | . . . . . 1 Hauler Manifests 1 | . 1 . . . . Derelict Proto ID Bank 1 | . . . 1 . . Fabricator Hacks . | . . . . . . Repair Station Hacks 3 | . 3 . . . . Scan Component 1 | . 1 . . . . Repair 1 | . 1 . . . . Refit 1 | . 1 . . . . Recycling Unit Hacks . | . . . . . . Scanalyzer . | . . . . . . Garrison Access Hacks . | . . . . . . Unauthorized Hacks . | . . . . . . Terminals . | . . . . . . Fabricators . | . . . . . . Repair Stations . | . . . . . . Recycling Units . | . . . . . . Scanalyzers . | . . . . . . Garrison Access . | . . . . . . Data Cores Recovered . | . . . . . . Used . | . . . . . . Hacking Detections 3 | . 3 . . . . Full Trace Events . | . . . . . . Feedback Events . | . . . . . . Feedback Blocked . | . . . . . . Robot Schematics Acquired . | . . . . . . Robots Built . | . . . . . . Authchips . | . . . . . . Time . | . . . . . . Total Robot Build Rating . | . . . . . . Part Schematics Acquired . | . . . . . . Parts Built . | . . . . . . Authchips . | . . . . . . Time . | . . . . . . Total Part Build Rating . | . . . . . . Parts Repaired 1 | . 1 . . . . Time 26 | . 26 . . . . Parts Recycled . | . . . . . . Recycled Matter . | . . . . . . Retrieved Matter . | . . . . . . Retrieved Components . | . . . . . . Parts Scanalyzed . | . . . . . . Part Schematics Acquired . | . . . . . . Parts Damaged . | . . . . . . Bothacking | -11 -10 -10 -10 -9 -8 ------------ Run | Yrd Mat Min Exi Min Mat Used RIF Installer . | . . . . . . Robots Hacked . | . . . . . . Non-combat . | . . . . . . Combat . | . . . . . . Robot Hacks Applied . | . . . . . . Relay Couplers Released . | . . . . . . Fabnet Peak Effective % . | . . . . . . Robots Rewired . | . . . . . . Allies Hacked . | . . . . . . Hacks Repelled . | . . . . . . Allies | -11 -10 -10 -10 -9 -8 -------- Run | Yrd Mat Min Exi Min Mat Total Allies 3 | . . . . 3 . Largest Group 3 | . . . . 3 3 Highest-Rated Group 40 | . . . . 40 40 Highest-Rated Ally 16 | . . . . 16 16 Total Orders . | . . . . . . Ally Attacks 26 | . . . . . 26 Total Damage 256 | . . . . . 256 Kills 2 | . . . . . 2 Allies Corrupted . | . . . . . . Allies Melted . | . . . . . . Intel | -11 -10 -10 -10 -9 -8 ------- Run | Yrd Mat Min Exi Min Mat Robot Analysis Total . | . . . . . . Derelict Logs Recovered 4 | . . 1 . 3 . Drone Launches . | . . . . . . Drone Recoveries . | . . . . . . Exploration | -11 -10 -10 -10 -9 -8 ------------- Run | Yrd Mat Min Exi Min Mat Turns Passed 6272 | 54 1073 1355 1075 1249 1466 Spaces Moved 3214 | 47 675 728 566 642 556 Core 11 | 11 . . . . . Treads . | . . . . . . Legs 2898 | . 406 728 566 642 556 Wheels 305 | 36 269 . . . . Hover . | . . . . . . Flight . | . . . . . . Fastest Speed 50 | 50 80 120 190 190 190 Average Speed 170 | 72 125 172 190 190 190 Slowest Speed 330 | 80 190 190 190 190 330 Overloaded Moves . | . . . . . . Propulsion Burnouts . | . . . . . . Robots Hopped . | . . . . . . Cave-ins Triggered 9 | . . . . . 9 Exploration Rate (%) 67 | 3 85 97 87 95 37 Regions Visited 5 Branch Regions 3 Pre-discovered Areas 3 | . . 1 . 2 . Known Exits Taken 4 | . 1 1 1 1 . Unknown Exits Taken 1 | 1 . . . . . Scrap Searched 3 | . . 1 . 2 . Spaces Dug . | . . . . . . Terrain Destroyed 133 | . . 55 . . 78 Melee . | . . . . . . Projectile 1 | . . . . . 1 AOE 132 | . . 55 . . 77 Terrain Rammed . | . . . . . . Walls Destroyed . | . . . . . . Machines Disabled . | . . . . . . Actions | -11 -10 -10 -10 -9 -8 --------- Run | Yrd Mat Min Exi Min Mat Total 3837 | 65 831 790 566 671 914 Wait 382 | 2 68 10 . 26 276 Move 3209 | 46 674 727 565 641 556 Hop . | . . . . . . Pick Up 67 | 10 24 10 1 1 21 Fast Attach . | . . . . . . Attach 20 | 6 4 1 . . 9 Detach 1 | . . . . . 1 Swap 27 | 1 8 12 . 2 4 Drop 43 | . 16 10 . 1 16 Fire 88 | . 37 20 . . 31 Melee . | . . . . . . Ram . | . . . . . . Kick . | . . . . . . Crush . | . . . . . . Escape Stasis . | . . . . . . Rewire . | . . . . . . Trap . | . . . . . . Miscellaneous . | . . . . . . Route ------- -11/Scrapyard -10/Materials (discovered 4 exits: *Mat x3 / *Min) -10/Mines (discovered 3 exits: *Mat x2 / *Exi) -10/Exiles (discovered 2 exits: *Min x2) -9/Mines (discovered 2 exits: *Mat x2) -8/Materials (discovered 1 exit: *Fac) History --------- Turn | Location | Event 9 | -11/Scrapyard | Discovered new exit (range 14) 55 | -11/Scrapyard | Entered Materials 123 | -10/Materials | Discovered new exit (range 8) 302 | -10/Materials | Build established: Mutant 364 | -10/Materials | Identified exit to Mines 471 | -10/Materials | Discovered new exit (range 15) 489 | -10/Materials | Identified exit to Materials 639 | -10/Materials | Repaired Lgt. Cannon 707 | -10/Materials | Discovered exit to Materials (range 16) 957 | -10/Materials | Discovered exit to Materials (range 10) 1128 | -10/Materials | Entered Mines 1141 | -10/Mines | Received a Rocket Launcher from a helpful Derelict 1504 | -10/Mines | Learned location of Storage (-9) 1738 | -10/Mines | Discovered exit to Materials (range 4) 1963 | -10/Mines | Core integrity fell below 50% 2057 | -10/Mines | Deemed a non-threat by the Exiles lab entrance 2057 | -10/Mines | Discovered new exit (range 5) 2312 | -10/Mines | Discovered exit to Materials (range 5) 2481 | -10/Mines | Identified exit to Exiles 2483 | -10/Mines | Entered Exiles 2512 | -10/Exiles | Discovered new exit (range 15) 2537 | -10/Exiles | Identified exit to Mines 2573 | -10/Exiles | Met 8R-AWN 2605 | -10/Exiles | Met EX-HEX 2737 | -10/Exiles | Visited The Gauntlet 2852 | -10/Exiles | Met EX-DEC 2938 | -10/Exiles | Discovered exit to Mines (range 14) 3090 | -10/Exiles | Met EX-BIN 3283 | -10/Exiles | Aligned with FarCom system 3285 | -10/Exiles | Given EX-Vault access code 3331 | -10/Exiles | Opened EX-Vault 3354 | -10/Exiles | Found Field Lobotomy Kit 3393 | -10/Exiles | Warned to stay clear of 0b10 Research branches 3558 | -10/Exiles | Left Exiles lab with Field Lobotomy Kit 3558 | -10/Exiles | Entered Mines 3562 | -9/Mines | Met a Derelict bent on vengeance 3583 | -9/Mines | Learned Materials terminal intel 3706 | -9/Mines | Assisted by bots powering up and referring to "LRC-V3" 3908 | -9/Mines | Found a hidden stash of uninstalled traps 3929 | -9/Mines | Discovered new exit (range 10) 3946 | -9/Mines | Identified exit to Materials 4219 | -9/Mines | Learned Materials emergency access door positions 4267 | -9/Mines | Discovered exit to Materials (range 5) 4360 | -9/Mines | Found a damaged Exp. Sensor Array with a note attached 4364 | -9/Mines | Found Prototype Device 4807 | -9/Mines | Entered Materials 4807 | -8/Materials | Accompanied by 3 allies 4807 | -8/Materials | Evolved 4 slots: Power x1, Utility x2, Weapon x1 4809 | -8/Materials | Loaded intel: 12 terminal locations 4847 | -8/Materials | Identified Exp. Sensor Array 5178 | -8/Materials | Build established: Scavenger-Skirmisher 5838 | -8/Materials | Discovered new exit (range 9) 5851 | -8/Materials | Identified exit to Factory 6228 | -8/Materials | Crushed by falling debris 6236 | -8/Materials | Crushed by falling debris 6236 | -8/Materials | System corruption reached 10% 6251 | -8/Materials | Crushed by falling debris 6251 | -8/Materials | Core integrity fell below 50% 6253 | -8/Materials | Crushed by falling debris 6257 | -8/Materials | Crushed by falling debris 6258 | -8/Materials | Crushed by falling debris 6262 | -8/Materials | Crushed by falling debris 6264 | -8/Materials | Crushed by falling debris 6266 | -8/Materials | Crushed by falling debris 6273 | -8/Materials | Self-destructed Last Messages --------------- Crushed by falling debris. Aluminum Leg destroyed. The unstable cave ceiling collapses. G-47 Trooper crushed by falling debris. G-47 Trooper system corrupted by crushing effect. G-47 Trooper destroyed. The unstable cave ceiling collapses. Crushed by falling debris. The unstable cave ceiling collapses. Crushed by falling debris. Imp. Heat Sink destroyed. System corrupted by crushing effect (+2). The unstable cave ceiling collapses. Crushed by falling debris. The unstable cave ceiling collapses. Crushed by falling debris. The unstable cave ceiling collapses. Crushed by falling debris. System corrupted: Component data lost. Map ----- +----------------------------------------------------+ | ??????????????????""?????????????????????????????? | | ??????????????????""?????????????????????????????? | | ??????????????????T"?????????????????????????????? | | ??????????????????""?????????????????????????????? | | ??????????????????""?????????????????????????????? | | ?????????????????????????????????????????????????? | | ?"""""????????????????????????????????????######## | | ?""T""?????????????????????????T"?????????# ! | | ????????????????????????????????"?????????# | | ??????????????????????????????????????????# | | ??????????????????????????????????????????# """ "" | | ?????????????????g????????????????????????# """ "" | | ??????????? "????????????????????????????# """ "" | | ??????????" """??????????########????????# | | ?????????? ?????????#!!!!!!#????????####/### | | ?????????? ????????#!!!!!!#?????????# # | | ????????? #######?# ??????????# # | | ????????? ### ############?# # | | ????????????? # #?# # | | ???????????####+## #%* [* # #?# # | | ????????# g # # ]#?### ### | | ?????????# " Y ###] =+ + #???# #?? | | ?????????? **! T# g ##= !# # #???# #?? | | ??????????? *!!?"# %g##g# [ # # ! #???#=#?? | | ??????????? ?????# #### ####+## #???#!#?? | | ???????????????????# ##@# ##?# ##+###### #?? | | ???????????????????# #### #### #?? | | ???????????????????# #?# ## ###########?? | | ?????????????####### #?# ### #???######### | | ?????????????# # #?# ## #???# T # | | ?????????????# """ # #?# ## #???#""" # | | ?????????????# """ # #?# ## #####""" # | | ?????????????# """ # #?# % #""" # | | ?????????????# # #?## < # + | | ?????????????# """ # #??# # # | | ?????????????# """ # #??####+####### ### = # | | ?????????????#%""" # #??# #???# #?# # | | ?????????????# # #??# #???# #?######### | | ????????????##+#+### #??#!! #???# ######### | | ???+????????# % % #??#! #???# !! | | ????????????+ #### #???# ! | | ????????????# + %#???#= | | ????????????## ######+##########/#???# | | ?????????????# #?# !## ?# #???# ### | | ?????????????# #?# """"" ## # #???# #?### | | ?????????????# #?# """"" # # ##### #???# | | ????########?# #?# """"" # / #???# | | ##### ! #?# #?# """"" # # ########### #???# | | + T #?# #?# """"" ### # #????######+##### | | ##### #?# #?# """"" ####?# ###### = ## | +----------------------------------------------------+ Best States ------------- Heat Dissipation 45 Energy Generation 17 Energy Capacity 415 Matter Stores 300 Matter Capacity 300 Sight Range 16 Robot Scan Range 15 Terrain Scan Density 10 Evasion (%) 55 Item Schematics ----------------- None Robot Schematics ------------------ None Fabricated ------------ Nothing Alien Tech Used ----------------- None Achievements -------------- Dramatic Entrance Shopping List Unlikely Earthworm Challenges ------------ None Game ------ Seed PotentialOpticalProjector Manual? 0 Play Time 00:43:58 Cumulative 7.5 hours Start 2024.04.12 @ 20:47:57 End 2024.04.13 @ 17:51:04 Sessions 3 Manual Loads 0 Difficulty Rogue Special Mode None Game No. 6 Rogue 6 Adventurer 0 Explorer 0 Win Type - Total 0 Types 0/0/0/0/0/0/0/0/0 Lore% 12 Gallery% 12 Achievement% 14 Wizard Run 0 Options --------- Layout 1 ASCII 0 Keyboard 0 Movement Mouse Keybinds 0 Fullscreen 1 Font 24/Smallcaps Map View 50x35 Zoom Use 0% Tactical HUD 0 Map Filters NONE Filters NONE Steam 1 RUN: 6ebb2884-ac0b-4cab-992a-68764029791d